fUST/lending_fUST_20251117
["ID","MTS","AMOUNT","RATE_DAILY","PERIOD"]
[394183465,1763361040583,-230.95085592,0.00017989,2]
[394183466,1763361040593,-1117.0240048,0.00017989,2]
[394183467,1763361040602,-1117.0240048,0.00017989,2]
[394183468,1763361040611,-1117.0240048,0.00017989,2]
[394183469,1763361040621,-1117.0240048,0.00017989,2]
[394183470,1763361040630,-1117.0240048,0.00017989,2]
[394183471,1763361040639,-1117.0240048,0.00017989,2]
[394183472,1763361040648,-1117.0240048,0.00017989,2]
[394183473,1763361040658,-50000.0,0.00017989,2]
[394183474,1763361040667,-500.0,0.00017989,2]
[394183475,1763361040676,-100000.0,0.0001799,2]
[394183476,1763361040686,-500.0,0.00017999,2]
[394183477,1763361040695,-500.0,0.00017999,2]
[394183478,1763361040705,-176.01753117,0.00017999,2]
[394183479,1763361040714,-500.0,0.00017999,2]
[394183480,1763361040723,-433.42341977,0.00017999,2]
[394183481,1763361040733,-500.0,0.00017999,2]
[394183482,1763361040743,-500.0,0.00017999,2]
[394183483,1763361040752,-500.0,0.00017999,2]
[394183484,1763361040762,-500.0,0.00017999,2]
[394183485,1763361040772,-500.0,0.00017999,2]
[394183486,1763361040782,-500.0,0.00017999,2]
[394183487,1763361040791,-500.0,0.00017999,2]
[394183488,1763361040801,-500.0,0.00017999,2]
[394183489,1763361040811,-500.0,0.00017999,2]
[394183490,1763361040821,-500.0,0.00017999,2]
[394183491,1763361040831,-500.0,0.00017999,2]
[394183492,1763361040841,-500.0,0.00017999,2]
[394183493,1763361040850,-500.0,0.00017999,2]
[394183494,1763361040860,-500.0,0.00017999,2]
[394183495,1763361040871,-217.11539604,0.00017999,2]
[394183496,1763361040881,-500.0,0.00017999,2]
[394183497,1763361040892,-500.0,0.00017999,2]
[394183498,1763361040901,-500.0,0.00017999,2]
[394183499,1763361040912,-500.0,0.00017999,2]
[394183500,1763361040921,-500.0,0.00017999,2]
[394183501,1763361040931,-500.0,0.00017999,2]
[394183502,1763361040940,-551.98077723,0.00017999,2]
[394183503,1763361040949,-27337.64169656,0.00018,2]
[394183504,1763361040959,-469.36203381,0.00018,2]
[394183505,1763361040968,-150.0,0.00018007,2]
[394183506,1763361040977,-3081.91445773,0.00018031,2]
[394183507,1763361040987,-3081.91445773,0.00018097,2]
[394183508,1763361040997,-160.0,0.00018135,2]
[394183509,1763361041006,-324.0,0.00018158,2]
[394183510,1763361041015,-775.08,0.00018163,2]
[394183511,1763361041026,-3081.91445773,0.00018163,2]
[394183512,1763361041036,-502.92139257,0.00018173,2]
[394183513,1763361041046,-501.98604669,0.00018173,2]
[394183514,1763361041058,-500.0,0.00018173,2]
[394183515,1763361041067,-502.26261043,0.00018173,2]
[394183516,1763361041076,-433.39,0.00018189,3]
[394183517,1763361041087,-216.69,0.00018189,3]
[394183518,1763361041097,-650.1,0.00018189,3]
[394183519,1763361041106,-775.08,0.00018199,2]
[394183520,1763361041116,-775.08,0.00018199,2]
[394183521,1763361041126,-151.0,0.000182,2]
[394183522,1763361041136,-151.0,0.000182,2]
[394183523,1763361041146,-151.0,0.000182,2]
[394183524,1763361041156,-151.0,0.000182,2]
[394183525,1763361041165,-151.0,0.000182,2]
[394183526,1763361041174,-151.0,0.000182,2]
[394183527,1763361041185,-151.0,0.000182,2]
[394183528,1763361041194,-775.08,0.00018216,2]
[394183529,1763361041203,-3467.11,0.00018217,3]
[394183530,1763361041213,-1733.55,0.00018217,3]
[394183531,1763361041222,-775.08,0.00018226,2]
[394183532,1763361041232,-775.08,0.00018226,2]
[394183533,1763361041242,-775.08,0.00018226,2]
[394183534,1763361041252,-775.08,0.00018226,2]
[394183535,1763361041262,-775.08,0.00018226,2]
[394183536,1763361041271,-775.08,0.00018226,2]
[394183537,1763361041283,-775.08,0.00018226,2]
[394183538,1763361041293,-775.08,0.00018226,2]
[394183539,1763361041303,-775.08,0.00018226,2]
[394183540,1763361041317,-775.08,0.00018226,2]
[394183541,1763361041327,-775.08,0.00018226,2]
[394183542,1763361041336,-151.0,0.00018229,2]
[394183543,1763361041347,-151.0,0.00018229,2]
[394183544,1763361041357,-151.0,0.00018229,2]
[394183545,1763361041366,-151.0,0.00018229,2]
[394183546,1763361041375,-151.0,0.00018229,2]
[394183547,1763361041387,-151.0,0.00018229,2]
[394183548,1763361041396,-151.0,0.00018229,2]
[394183549,1763361041406,-151.0,0.00018229,2]
[394183550,1763361041417,-151.0,0.00018229,2]
[394183551,1763361041433,-270.73879904,0.00018229,2]
[394183552,1763361041442,-866.78,0.0001823,3]
[394183553,1763361041523,-775.08,0.00018235,2]
[394183554,1763361041534,-500.0,0.00018236,2]
[394183555,1763361041543,-500.0,0.00018236,2]
[394183556,1763361041552,-500.0,0.00018236,2]
[394183557,1763361041561,-1000.0,0.00018238,2]
[394183558,1763361041570,-1000.0,0.00018238,2]
[394183559,1763361041579,-1000.0,0.00018238,2]
[394183560,1763361041590,-1000.0,0.00018238,2]
[394183561,1763361041600,-1016.95258603,0.00018238,2]
[394183562,1763361041610,-775.08,0.00018239,2]
[394183563,1763361041620,-775.08,0.00018239,2]
[394183564,1763361041629,-775.08,0.00018239,2]
[394183565,1763361041639,-775.08,0.00018239,2]
[394183566,1763361041648,-775.08,0.00018239,2]
[394183567,1763361041657,-775.08,0.00018239,2]
[394183568,1763361041666,-775.08,0.00018239,2]
[394183569,1763361041677,-775.31545856,0.00018239,2]
[394183570,1763361041686,-890000.0,0.0001824,2]
[394183571,1763361041697,-500.0,0.00018263,2]
[394183572,1763361041706,-518.08160207,0.00018273,2]
[394183573,1763361041716,-502.44158823,0.00018273,2]
[394183574,1763361041728,-500.0,0.00018273,2]
[394183575,1763361041737,-501.81896579,0.00018273,2]
[394183576,1763361041748,-377.89329795,0.00018273,2]
[394183577,1763361041757,-500.0,0.00018273,2]
[394183578,1763361041766,-500.0,0.00018273,2]
[394183579,1763361041775,-500.0,0.00018273,2]
[394183580,1763361041784,-500.0,0.00018273,2]
[394183581,1763361041795,-500.0,0.00018273,2]
[394183582,1763361041804,-500.0,0.00018273,2]
[394183583,1763361041813,-161.01806223,0.00018273,2]
[394183584,1763361041823,-495.28841905,0.00018273,2]
[394183585,1763361041832,-508.13254612,0.00018273,2]
[394183586,1763361041842,-575.56467831,0.00018273,2]
[394183587,1763361041852,-430.73903705,0.00018273,2]
[394183588,1763361041861,-500.90036308,0.00018273,2]
[394183589,1763361041871,-500.81441983,0.00018273,2]
[394183590,1763361041881,-429.52953356,0.00018273,2]
[394183591,1763361041891,-445.08248483,0.00018273,2]
[394183592,1763361041901,-500.0,0.00018273,2]
[394183593,1763361041910,-500.0,0.00018273,2]
[394183594,1763361041919,-500.0,0.00018273,2]
[394183595,1763361041927,-500.0,0.00018273,2]
[394183596,1763361041936,-500.0,0.00018273,2]
[394183597,1763361041945,-500.0,0.00018273,2]
[394183598,1763361041955,-466.99895109,0.00018273,2]
[394183599,1763361041964,-500.0,0.00018273,2]
[394183600,1763361041974,-169.58130387,0.00018273,2]
[394183601,1763361041983,-500.0,0.00018273,2]
[394183602,1763361041992,-500.0,0.00018273,2]
[394183603,1763361042002,-507.23857365,0.00018273,2]
[394183604,1763361042012,-500.0,0.00018273,2]
[394183605,1763361042022,-500.0,0.00018273,2]
[394183606,1763361042031,-500.0,0.00018273,2]
[394183607,1763361042041,-500.0,0.00018273,2]
[394183608,1763361042050,-500.0,0.00018273,2]
[394183609,1763361042060,-500.0,0.00018273,2]
[394183610,1763361042069,-249.43248286,0.00018273,2]
[394183611,1763361042078,-500.0,0.00018273,2]
[394183612,1763361042088,-502.86159398,0.00018273,2]
[394183613,1763361042097,-500.0,0.00018273,2]
[394183614,1763361042106,-500.0,0.00018273,2]
[394183615,1763361042115,-500.0,0.00018273,2]
[394183616,1763361042124,-500.0,0.00018273,2]
[394183617,1763361042133,-333.64945345,0.00018338,2]
[394183618,1763361042143,-359.0,0.00018358,2]
[394183619,1763361042152,-2004.5664995,0.00018404,2]
[394183620,1763361042163,-1001.94711302,0.00018521,2]
[394183621,1763361042172,-1000.0,0.00018521,2]
[394183622,1763361042182,-513.64025914,0.00018521,2]
[394183623,1763361042193,-1093.21413216,0.00018521,2]
[394183624,1763361042204,-585.02546262,0.00018521,2]
[394183625,1763361042213,-1000.0,0.00018521,2]
[394183626,1763361042223,-436.00854889,0.00018521,2]
[394183627,1763361042235,-500.0,0.00018537,2]
[394183628,1763361042244,-300.0,0.00018602,2]
[394183629,1763361042254,-300.0,0.00018602,2]
[394183630,1763361042263,-300.0,0.00018602,2]
[394183631,1763361042273,-300.0,0.00018602,2]
[394183632,1763361042283,-300.0,0.00018602,2]
[394183633,1763361042293,-300.0,0.00018602,2]
[394183634,1763361042305,-300.0,0.00018602,2]
[394183635,1763361042316,-300.0,0.00018602,2]
[394183636,1763361042325,-300.0,0.00018602,2]
[394183637,1763361042335,-300.0,0.00018602,2]
[394183638,1763361042345,-300.0,0.00018602,2]
[394183639,1763361042355,-300.0,0.00018602,2]
[394183640,1763361042364,-300.0,0.00018602,2]
[394183641,1763361042375,-300.0,0.00018602,2]
[394183642,1763361042385,-300.0,0.00018602,2]
[394183643,1763361042395,-300.0,0.00018602,2]
[394183644,1763361042404,-300.0,0.00018602,2]
[394183645,1763361042414,-300.0,0.00018602,2]
[394183646,1763361042423,-300.0,0.00018602,2]
[394183647,1763361042433,-300.0,0.00018602,2]
[394183648,1763361042442,-300.0,0.00018602,2]
[394183649,1763361042453,-300.0,0.00018602,2]
[394183650,1763361042462,-300.0,0.00018602,2]
[394183651,1763361042472,-300.0,0.00018602,2]
[394183652,1763361042482,-300.0,0.00018602,2]
[394183653,1763361042493,-300.0,0.00018704,2]
[394183654,1763361042502,-300.0,0.00018704,2]
[394183655,1763361042512,-300.0,0.00018704,2]
[394183656,1763361042521,-300.0,0.00018704,2]
[394183657,1763361042531,-300.0,0.00018704,2]
[394183658,1763361042541,-300.0,0.00018704,2]
[394183659,1763361042550,-300.0,0.00018704,2]
[394183660,1763361042559,-300.0,0.00018704,2]
[394183661,1763361042568,-1000.0,0.00018721,2]
[394183662,1763361042578,-150.0,0.00018773,2]
[394183663,1763361042587,-150.0,0.00018773,2]
[394183664,1763361042597,-500.0,0.00018811,2]
[394183665,1763361042606,-511.09051941,0.00018821,2]
[394183666,1763361042616,-502.73202336,0.00018821,2]
[394183667,1763361042625,-1106.11024176,0.00018821,2]
[394183668,1763361042634,-182.75279002,0.00018821,2]
[394183669,1763361042644,-664.0898945,0.00018821,2]
[394183670,1763361042653,-1000.0,0.00018821,2]
[394183671,1763361042663,-274.0948081,0.00018821,2]
[394183672,1763361042672,-1000.0,0.00018821,2]
[394183673,1763361042681,-501.54850908,0.00018821,2]
[394183674,1763361042691,-1001.37329497,0.00018821,2]
[394183675,1763361042700,-1001.19443095,0.00018821,2]
[394183676,1763361042709,-1000.83212326,0.00018821,2]
[394183677,1763361042719,-501.0503735,0.00018821,2]
[394183678,1763361042728,-1000.0,0.00018821,2]
[394183679,1763361042737,-357.78598318,0.00018821,2]
[394183680,1763361042747,-509.45721812,0.00018821,2]
[394183681,1763361042756,-1000.0,0.00018821,2]
[394183682,1763361042765,-1000.0,0.00018821,2]
[394183683,1763361042776,-624.42180306,0.00018973,2]
[394183684,1763361042786,-500.0,0.00018973,2]
[394183685,1763361042797,-500.0,0.00018973,2]
[394183686,1763361042807,-500.0,0.00018973,2]
[394183687,1763361042817,-500.4503771,0.00018973,2]
[394183688,1763361042827,-501.3914242,0.00018973,2]
[394183689,1763361042838,-505.03306875,0.00018973,2]
[394183690,1763361042848,-160.0,0.00018992,2]
[394183691,1763361042859,-504.49475929,0.00019068,2]
[394183692,1763361042868,-1017.26996116,0.00019068,2]
[394183693,1763361042877,-500.0,0.00019085,2]
[394183694,1763361042887,-500.0,0.000191,2]
[394183695,1763361042898,-500.0,0.000191,2]
[394183696,1763361042908,-500.0,0.000191,2]
[394183697,1763361042919,-1402.42880678,0.00019268,2]
[394183698,1763361042928,-500.0,0.00019359,2]
[394183699,1763361042938,-1500.0,0.00019368,2]
[394183700,1763361042947,-504.70574074,0.00019368,2]
[394183701,1763361042956,-1500.0,0.00019368,2]
[394183702,1763361042966,-541.04800509,0.00019368,2]
[394183703,1763361042976,-1500.0,0.00019368,2]
[394183705,1763361042986,-1001.47190717,0.00019521,2]
[394183707,1763361042995,-1000.0,0.00019521,2]
[394183709,1763361043005,-260.0,0.0001954,2]
[394183710,1763361043017,-866.78,0.00019559,3]
[394183711,1763361043026,-433.38,0.00019559,3]
[394183712,1763361043037,-6934.22,0.00019587,3]
[394183713,1763361043048,-3467.1,0.00019587,3]
[394183714,1763361043058,-1733.56,0.000196,3]
[394183715,1763361043068,-420.0,0.00019627,2]
[394183716,1763361043081,-1305.0,0.00019628,2]
[394183717,1763361043091,-500.0,0.00019633,2]
[394183718,1763361043101,-1000.0,0.00019648,2]
[394183719,1763361043112,-501.42486407,0.00019648,2]
[394183720,1763361043123,-500.0,0.00019907,2]
[394183721,1763361043133,-1855.51592409,0.00019916,2]
[394183722,1763361043145,-2000.0,0.00019916,2]
[394183723,1763361043155,-2000.0,0.00019916,2]
[394183724,1763361043164,-1152.0,0.0002,2]
[394183725,1763361043173,-2963.6142836,0.0002,20]
[394183726,1763361043183,-2000.0,0.0002,7]
[394183727,1763361043194,-177.0,0.00020007,2]
[394183728,1763361043205,-1004.37558909,0.00020068,2]
[394183729,1763361043216,-360.0,0.00020088,2]
[394183730,1763361043228,-500.0,0.00020181,2]
[394183731,1763361043237,-1016.64132678,0.00020196,2]
[394183732,1763361043246,-500.0,0.00020455,2]
[394183733,1763361043256,-1931.38695596,0.00020464,2]
[394183734,1763361043268,-2500.0,0.00020464,2]
[394183735,1763361043277,-742.91127637,0.00020572,2]
[394183736,1763361043287,-460.0,0.00020636,2]
[394183738,1763361043296,-500.0,0.00020729,2]
[394183740,1763361043308,-500.0,0.00021003,2]
[394183741,1763361043387,-3000.0,0.00021012,2]
[394183742,1763361043396,-560.0,0.00021183,2]
[394183743,1763361043405,-500.0,0.00021277,2]
[394183744,1763361043415,-587.0,0.00021416,2]
[394183745,1763361043425,-500.0,0.00021551,2]
[394183747,1763361043435,-1430.52966827,0.0002156,2]
[394183748,1763361043445,-660.0,0.00021731,2]
[394183749,1763361043454,-500.0,0.00021825,2]
[394183750,1763361043464,-220.0,0.00022,2]
[394183751,1763361043473,-204.0,0.00022007,2]
[394183752,1763361043484,-742.91127637,0.00022031,2]
[394183753,1763361043494,-500.0,0.00022099,2]
[394183754,1763361043505,-172.78,0.000221,7]
[394183755,1763361043514,-337.87,0.000221,14]
[394183756,1763361043525,-760.0,0.00022279,2]
[394183757,1763361043534,-636.91831408,0.00022373,2]
[394183758,1763361043545,-860.0,0.00022827,2]
[394183759,1763361043554,-823.0,0.00023367,2]
[394183760,1763361043564,-960.0,0.00023375,2]
[394183761,1763361043574,-8225.56701965,0.00023462,2]
[394183762,1763361043584,-742.91127637,0.0002349,2]
[394183763,1763361043594,-7322.24,0.000237,7]
[394183764,1763361043603,-1060.0,0.00023923,2]
[394183765,1763361043612,-231.0,0.00024007,2]
[394183766,1763361043623,-12962.04999538,0.00024042,2]
[394183767,1763361043633,-337376.32391761,0.00024142,2]
[394183768,1763361043643,-151.0,0.00024142,7]
[394183769,1763361043652,-151.0,0.00024142,7]
[394183770,1763361043661,-863.32266703,0.00024471,2]
[394183771,1763361043671,-116762.72740375,0.0002465,2]
[394183772,1763361043681,-16754.58798679,0.00024774,2]
[394183773,1763361043690,-279474.524841,0.00024798,2]
[394183774,1763361043699,-151.0,0.00024798,7]
[394183775,1763361043708,-151.0,0.00024798,7]
[394183776,1763361043718,-151.0,0.00024798,7]
[394183777,1763361043727,-151.0,0.00024798,7]
[394183778,1763361043737,-151.0,0.000248,2]
[394183779,1763361043746,-151.0,0.000248,2]
[394183780,1763361043756,-151.0,0.000248,2]
[394183781,1763361043765,-152.278821,0.000248,7]
[394183782,1763361043774,-152.278821,0.000248,7]
[394183783,1763361043784,-152.278821,0.000248,7]
[394183784,1763361043793,-152.278821,0.000248,7]
[394183785,1763361043803,-229.347791,0.000248,7]
[394183786,1763361043812,-229.347791,0.000248,7]
[394183787,1763361043821,-229.347791,0.000248,7]
[394183788,1763361043830,-229.347791,0.000248,7]
[394183789,1763361043840,-4603.3059884,0.000248,2]
[394183790,1763361043851,-500.0,0.00024873,2]
[394183791,1763361043860,-435.59980476,0.00024873,2]
[394183792,1763361043870,-500.81735696,0.00024873,2]
[394183793,1763361043880,-507.90955875,0.00024873,2]
[394183794,1763361043891,-501.96334487,0.00024873,2]
[394183795,1763361043901,-503.85554989,0.00024873,2]
[394183796,1763361043910,-500.0,0.00024873,2]
[394183797,1763361043919,-500.0,0.00024873,2]
[394183798,1763361043929,-500.0,0.00024873,2]
[394183799,1763361043938,-500.0,0.00024873,2]
[394183800,1763361043949,-151.0,0.000249,7]
[394183801,1763361043959,-151.0,0.000249,7]
[394183802,1763361043969,-151.0,0.000249,7]
[394183803,1763361043978,-151.000062,0.000249,7]
[394183804,1763361043989,-151.0,0.000249,7]
[394183805,1763361043997,-2073.120455,0.000249,7]
[394183806,1763361044006,-2073.120455,0.000249,7]
[394183807,1763361044015,-2073.120455,0.000249,7]
[394183808,1763361044024,-2073.120455,0.000249,7]
[394183809,1763361044032,-292.22192,0.000249,7]
[394183810,1763361044042,-292.22192,0.000249,7]
[394183811,1763361044051,-292.22192,0.000249,7]
[394183812,1763361044060,-292.22192,0.000249,7]
[394183813,1763361044070,-151.0,0.000249,2]
[394183814,1763361044079,-151.0,0.000249,2]
[394183815,1763361044088,-151.0,0.000249,2]
[394183816,1763361044097,-152.278821,0.000249,7]
[394183817,1763361044107,-152.278821,0.000249,7]
[394183818,1763361044116,-152.278821,0.000249,7]
[394183819,1763361044125,-152.278821,0.000249,7]
[394183820,1763361044134,-229.347791,0.000249,7]
[394183821,1763361044143,-229.347791,0.000249,7]
[394183822,1763361044152,-229.347791,0.000249,7]
[394183823,1763361044163,-229.347791,0.000249,7]
[394183824,1763361044172,-151.0,0.000249,7]
[394183825,1763361044181,-165057.6241879,0.000249,2]
[394183826,1763361044377,-710.2071187,0.000249,2]
[394183827,1763361044388,-50514.595148,0.000249,2]
[394183828,1763361044399,-161028.46324546,0.000249,2]
[394183832,1763361055170,-500.0,0.00021917,2]
[394183833,1763361055180,-500.0,0.00023013,2]
[394183834,1763361055191,-500.0,0.00024109,2]
[394183835,1763361055211,-248659.07910394,0.000249,2]
[394183836,1763361055226,-151.0,0.000249,7]
[394183837,1763361055243,-151.0,0.000249,7]
[394183838,1763361055261,-151.0,0.000249,7]
[394183839,1763361055280,-151.0,0.000249,7]
[394183840,1763361055297,-742.91127637,0.00024949,2]
[394183841,1763361055317,-27062.49426248,0.00025,5]
[394183842,1763361055330,-51314.24269192,0.00025,15]
[394183843,1763361055346,-42847.24574062,0.00025,30]
[394183844,1763361055364,-120590.51425607,0.00025,2]
[394183845,1763361055382,-407.99982657,0.00025,2]
[394183846,1763361055398,-500.0,0.00025205,2]
[394183847,1763361055411,-1089.96364609,0.00025284,2]
[394183848,1763361055429,-1002.4736931,0.00025421,2]
[394183849,1763361055444,-502.86059942,0.00025421,2]
[394183850,1763361055460,-1075.30915802,0.00025421,2]
[394183851,1763361055477,-602.19213915,0.00025421,2]
[394183852,1763361055491,-160.0,0.0002545,2]
[394183853,1763361055505,-400.67432439,0.00025451,2]
[394183854,1763361055518,-160.0,0.00025451,2]
[394183855,1763361055532,-1152.0,0.00025496,2]
[394183856,1763361055545,-337.87,0.000259,14]
[394183857,1763361055559,-258.0,0.00026007,2]
[394183858,1763361055574,-742.91127637,0.00026407,2]
[394183859,1763361055587,-154.273176,0.00027392,2]
[394183860,1763361055601,-500.0,0.00027397,2]
[394183861,1763361055614,-500.0,0.00027397,2]
[394183862,1763361055628,-500.0,0.00027397,2]
[394183863,1763361055641,-500.0,0.00027397,2]
[394183864,1763361055656,-500.0,0.00027397,2]
[394183865,1763361055670,-500.0,0.00027397,2]
[394183866,1763361055684,-500.0,0.00027397,2]
[394183867,1763361055699,-500.0,0.00027397,2]
[394183868,1763361055713,-500.0,0.00027397,2]
[394183869,1763361055727,-500.0,0.00027397,2]
[394183870,1763361055742,-500.0,0.00027397,2]
[394183871,1763361055756,-500.0,0.00027397,2]
[394183872,1763361055770,-221.53429644,0.00027397,2]
[394183873,1763361055785,-151.0,0.00027397,7]
[394183874,1763361055798,-151.0,0.00027397,7]
[394183875,1763361055810,-151.0,0.00027397,7]
[394183876,1763361055820,-158.479934,0.00027397,7]
[394183877,1763361055904,-151.0,0.00027397,7]
[394183878,1763361055920,-151.0,0.00027397,7]
[394183879,1763361055930,-273.529556,0.00027397,7]
[394183880,1763361055939,-151.0,0.00027397,7]
[394183881,1763361055948,-151.0,0.00027397,7]
[394183882,1763361055958,-151.0,0.00027397,7]
[394183883,1763361055967,-151.0,0.00027397,7]
[394183884,1763361055978,-151.0,0.00027397,7]
[394183885,1763361055987,-151.0,0.00027397,7]
[394183886,1763361055996,-239.693834,0.00027397,7]
[394183887,1763361056006,-151.0,0.00027397,7]
[394183888,1763361056015,-239.693834,0.00027397,7]
[394183889,1763361056024,-151.0,0.00027397,7]
[394183890,1763361056034,-239.693834,0.00027397,7]
[394183891,1763361056043,-239.693834,0.00027397,7]
[394183892,1763361056053,-151.0,0.00027397,7]
[394183893,1763361056062,-151.0,0.00027397,7]
[394183894,1763361056071,-151.0,0.00027397,7]
[394183895,1763361056080,-151.0,0.00027397,7]
[394183896,1763361056091,-151.0,0.00027397,7]
[394183897,1763361056101,-151.0,0.00027397,7]
[394183898,1763361056110,-151.0,0.00027397,7]
[394183899,1763361056119,-151.0,0.00027397,7]
[394183900,1763361056129,-151.0,0.00027397,7]
[394183901,1763361056138,-151.0,0.00027397,7]
[394183902,1763361056147,-151.0,0.00027397,7]
[394183903,1763361056157,-151.0,0.00027397,7]
[394183904,1763361056166,-151.0,0.00027397,7]
[394183905,1763361056175,-151.0,0.00027397,7]
[394183906,1763361056184,-151.0,0.00027397,7]
[394183907,1763361056194,-151.0,0.00027397,7]
[394183908,1763361056204,-151.0,0.00027397,7]
[394183909,1763361056215,-151.0,0.00027397,7]
[394183910,1763361056225,-151.0,0.00027397,7]
[394183911,1763361056236,-151.0,0.00027397,7]
[394183912,1763361056246,-151.0,0.00027397,7]
[394183913,1763361056257,-151.0,0.00027397,7]
[394183914,1763361056269,-151.0,0.00027397,7]
[394183915,1763361056279,-151.0,0.00027397,7]
[394183916,1763361056290,-151.0,0.00027397,7]
[394183917,1763361056301,-151.0,0.00027397,7]
[394183918,1763361056316,-151.0,0.00027397,7]
[394183919,1763361056326,-151.0,0.00027397,7]
[394183920,1763361056335,-151.0,0.00027397,7]
[394183921,1763361056345,-154.051775,0.00027397,7]
[394183922,1763361056357,-152.688152,0.00027397,7]
[394183923,1763361056366,-152.688152,0.00027397,7]
[394183924,1763361056377,-152.688152,0.00027397,7]
[394183925,1763361056388,-152.688152,0.00027397,7]
[394183926,1763361056399,-186.624266,0.00027397,7]
[394183927,1763361056410,-152.688152,0.00027397,7]
[394183928,1763361056420,-186.624266,0.00027397,7]
[394183929,1763361056431,-152.688152,0.00027397,7]
[394183930,1763361056442,-151.0,0.00027397,7]
[394183931,1763361056453,-151.0,0.00027397,7]
[394183932,1763361056465,-152.688152,0.00027397,7]
[394183933,1763361056475,-152.688152,0.00027397,7]
[394183934,1763361056485,-186.624266,0.00027397,7]
[394183935,1763361056495,-186.624266,0.00027397,7]
[394183936,1763361056505,-186.624266,0.00027397,7]
[394183937,1763361056515,-186.624266,0.00027397,7]
[394183938,1763361056526,-186.624266,0.00027397,7]
[394183939,1763361056535,-186.624266,0.00027397,7]
[394183940,1763361056545,-151.0,0.00027397,7]
[394183941,1763361056555,-151.0,0.00027397,7]
[394183942,1763361056564,-151.0,0.00027397,7]
[394183943,1763361056573,-151.0,0.00027397,7]
[394183944,1763361056583,-151.0,0.00027397,7]
[394183945,1763361056592,-151.0,0.00027397,7]
[394183946,1763361056601,-172.892332,0.00027397,7]
[394183947,1763361056611,-172.892332,0.00027397,7]
[394183948,1763361056620,-172.892332,0.00027397,7]
[394183949,1763361056629,-172.892332,0.00027397,7]
[394183950,1763361056638,-172.892332,0.00027397,7]
[394183951,1763361056647,-172.892332,0.00027397,7]
[394183952,1763361056657,-172.892332,0.00027397,7]
[394183953,1763361056667,-172.892332,0.00027397,7]
[394183954,1763361056678,-151.0,0.00027397,7]
[394183955,1763361056687,-151.0,0.00027397,7]
[394183956,1763361056697,-171.715225,0.00027397,7]
[394183957,1763361056706,-151.0,0.00027397,7]
[394183958,1763361056716,-345.63822,0.00027397,7]
[394183959,1763361056726,-345.63822,0.00027397,7]
[394183960,1763361056735,-151.0,0.00027397,7]
[394183961,1763361056745,-345.63822,0.00027397,7]
[394183962,1763361056755,-151.0,0.00027397,7]
[394183963,1763361056766,-151.0,0.00027397,7]
[394183964,1763361056776,-345.63822,0.00027397,7]
[394183965,1763361056787,-151.0,0.00027397,7]
[394183966,1763361056797,-373.217847,0.00027397,7]
[394183967,1763361056807,-373.217847,0.00027397,7]
[394183968,1763361056818,-373.217847,0.00027397,7]
[394183969,1763361056827,-151.0,0.00027397,7]
[394183970,1763361056837,-373.217847,0.00027397,7]
[394183971,1763361056846,-151.0,0.00027397,7]
[394183972,1763361056856,-151.0,0.00027397,7]
[394183973,1763361056866,-151.0,0.00027397,7]